fUST/lending_fUST_20260214
["ID","MTS","AMOUNT","RATE_DAILY","PERIOD"]
[405326906,1771002639896,-414.15751983,0.00024097,2]
[405326907,1771002639907,-353.96977042,0.00024097,2]
[405326908,1771002639918,-3057.27534205,0.00024098,2]
[405326911,1771002639933,-37955.86613308,0.00024098,2]
[405326913,1771002639944,-287.82,0.000242,7]
[405326915,1771002639954,-3252.75338023,0.00024353,3]
[405326917,1771002639965,-180.37,0.000246,2]
[405326919,1771002639977,-8478.1480961,0.000249,2]
[405326921,1771002639987,-4898.06393812,0.00024902,3]
[405326924,1771002639998,-1034.189,0.00024959,2]
[405326927,1771002640008,-284.017673,0.00025157,2]
[405326929,1771002640018,-500.0,0.00025157,2]
[405326931,1771002640028,-168.0,0.00025375,2]
[405326933,1771002640039,-6543.37449601,0.00025451,3]
[405326934,1771002640050,-742.81808302,0.00025451,3]
[405326935,1771002640060,-4239.07404805,0.00025492,2]
[405326936,1771002640071,-767.47,0.000255,14]
[405326937,1771002640081,-182.856,0.00025568,2]
[405326938,1771002640233,-1448.1620013,0.00025873,2]
[405326939,1771002640250,-3216.8941088,0.00025873,2]
[405326940,1771002640260,-1755.3229356,0.00025873,2]
[405326941,1771002640270,-462.5452901,0.00025873,2]
[405326942,1771002640280,-1496.3639818,0.00025873,2]
[405326943,1771002640290,-277.58116948,0.0002589,2]
[405326944,1771002640299,-330.93692533,0.00025962,2]
[405326946,1771002640309,-8188.6850539,0.00026,3]
[405326947,1771002640318,-16956.2961922,0.0002609,2]
[405326949,1771002640327,-250.0,0.00026124,2]
[405326950,1771002640337,-1384.0,0.00026154,2]
[405326951,1771002640347,-2600.69937315,0.00026279,2]
[405326952,1771002640356,-500.0,0.00026498,2]
[405326953,1771002640365,-287.82,0.000265,7]
[405326954,1771002640374,-9833.9956118,0.00026549,3]
[405326955,1771002640383,-300.0,0.00026794,30]
[405326956,1771002640394,-300.0,0.00026794,30]
[405326957,1771002640404,-300.0,0.00026794,30]
[405326958,1771002640413,-300.0,0.00026794,30]
[405326959,1771002640423,-300.0,0.00026794,30]
[405326960,1771002640432,-300.0,0.00026794,30]
[405326961,1771002640442,-300.0,0.00026794,30]
[405326962,1771002640451,-300.0,0.00026794,30]
[405326963,1771002640461,-300.0,0.00026794,30]
[405326964,1771002640470,-300.0,0.00026794,30]
[405326965,1771002640480,-300.0,0.00026794,30]
[405326966,1771002640490,-300.0,0.00026794,30]
[405326967,1771002640499,-300.0,0.00026794,30]
[405326968,1771002640508,-300.0,0.00026794,30]
[405326969,1771002640517,-300.0,0.00026794,30]
[405326970,1771002640527,-313.67795372,0.00026972,2]
[405326971,1771002640536,-8478.1480961,0.0002698,2]
[405326972,1771002640545,-100000.0,0.0002699,2]
[405326973,1771002640554,-1325.76,0.00027,2]
[405326974,1771002640564,-500.0,0.00027066,2]
[405326975,1771002640573,-168.0,0.00027067,2]
[405326976,1771002640583,-11280.54848566,0.00027097,3]
[405326978,1771002640593,-4239.07404805,0.00027113,2]
[405326980,1771002640602,-150.0,0.00027123,5]
[405326981,1771002640612,-334.16140692,0.00027295,2]
[405326983,1771002640621,-600.0,0.00027329,30]
[405326984,1771002640630,-605.871421,0.00027382,2]
[405326985,1771002640639,-150.0,0.00027397,5]
[405326987,1771002640650,-12130.82830747,0.00027646,3]
[405326988,1771002640659,-742.81808302,0.00027646,3]
[405326989,1771002640669,-767.47,0.000277,14]
[405326990,1771002640678,-150.0,0.000278,10]
[405326991,1771002640687,-500.0,0.00027806,2]
[405326992,1771002640697,-319.92405974,0.0002789,2]
[405326993,1771002640706,-250.0,0.00027898,2]
[405326994,1771002640715,-250.0,0.00027898,2]
[405326995,1771002640725,-250.0,0.00027898,2]
[405326996,1771002640734,-250.0,0.00027898,2]
[405326997,1771002640743,-500.0,0.00027898,2]
[405326998,1771002640753,-500.0,0.00027898,2]
[405326999,1771002640763,-500.0,0.00027898,2]
[405327000,1771002640772,-250.0,0.00027898,2]
[405327001,1771002640781,-242.83894578,0.00027898,2]
[405327002,1771002640791,-500.0,0.00027898,2]
[405327003,1771002640800,-334.98635189,0.00027898,2]
[405327004,1771002640810,-446.94518739,0.00027898,2]
[405327005,1771002640819,-500.0,0.00027898,2]
[405327006,1771002640832,-201.93286099,0.00027898,2]
[405327007,1771002640841,-501.30030461,0.00027898,2]
[405327008,1771002640851,-209.40437684,0.00027898,2]
[405327009,1771002640860,-217.15233878,0.00027898,2]
[405327010,1771002640869,-225.18697532,0.00027898,2]
[405327011,1771002640879,-250.0,0.00027898,2]
[405327012,1771002640888,-233.51889341,0.00027898,2]
[405327013,1771002640897,-242.15909246,0.00027898,2]
[405327014,1771002640907,-251.11897888,0.00027898,2]
[405327015,1771002640916,-160.42286585,0.00027898,2]
[405327016,1771002640926,-260.4103811,0.00027898,2]
[405327017,1771002640935,-270.0455652,0.00027898,2]
[405327018,1771002640945,-280.03725112,0.00027898,2]
[405327019,1771002640955,-290.39862941,0.00027898,2]
[405327020,1771002640964,-301.1433787,0.00027898,2]
[405327021,1771002640974,-250.0,0.00027945,5]
[405327022,1771002640983,-151.0,0.0002799,7]
[405327023,1771002640993,-16956.2961922,0.0002799,2]
[405327024,1771002641003,-500.0,0.00027999,2]
[405327025,1771002641012,-19354.04711142,0.00028,2]
[405327026,1771002641022,-4239.07404805,0.00028194,2]
[405327027,1771002641031,-2784.57082439,0.00028195,3]
[405327028,1771002641110,-10196.53730488,0.00028195,3]
[405327029,1771002641119,-418.21114512,0.00028493,5]
[405327030,1771002641129,-287.82,0.000285,7]
[405327031,1771002641139,-605.871421,0.00028534,2]
[405327032,1771002641148,-2600.69937315,0.00028549,2]
[405327033,1771002641158,-822.0,0.00028571,10]
[405327034,1771002641168,-500.0,0.00028622,2]
[405327035,1771002641177,-5496.2409779,0.00028623,2]
[405327036,1771002641189,-11807.29487759,0.00028744,3]
[405327063,1771002645556,-5000.0,0.00023767,2]
[405327064,1771002645567,-2024.09307348,0.00028744,3]
[405327065,1771002645576,-231.62012898,0.00028767,2]
[405327066,1771002645586,-324.75059016,0.00028767,2]
[405327067,1771002645595,-264.70871884,0.00028767,2]
[405327068,1771002645604,-413.60737319,0.00028767,2]
[405327069,1771002645613,-339.30324004,0.00028767,2]
[405327070,1771002645622,-403.13371865,0.00028767,2]
[405327071,1771002645632,-413.72118115,0.00028767,2]
[405327072,1771002645642,-725.64069357,0.00028767,2]
[405327073,1771002645651,-1290.02789967,0.00028767,2]
[405327074,1771002645662,-744.69812607,0.00028767,2]
[405327075,1771002645672,-190.34370842,0.00028809,2]
[405327076,1771002645682,-12058.34207778,0.0002889,2]
[405327084,1771002647548,-658.88006642,0.0002889,2]
[405327085,1771002647558,-3898.79,0.0002889,10]
[405327086,1771002647567,-93348.37389428,0.000289,2]
[405327099,1771003023793,500.0,0.00013273,2]
[405327100,1771003050722,5000.0,0.000235,2]
[405327101,1771003074806,5000.0,0.000235,2]
[405327103,1771003096995,5000.0,0.000235,2]
[405327104,1771003119431,5000.0,0.000235,2]
[405327105,1771003141504,5000.0,0.000235,2]
[405327106,1771003164069,5000.0,0.000235,2]
[405327107,1771003186442,4537.86420241,0.000235,2]
[405327122,1771003387771,500.0,0.00013273,2]
[405327136,1771003508460,432.71226974,0.00013699,2]
[405327137,1771003569295,501.07154057,0.00013699,2]
[405327138,1771003571343,150.0,0.00017808,2]
[405327139,1771003571388,313.29805915,0.00018904,2]
[405327140,1771003571442,250.0,0.00018356,2]
[405327141,1771003599353,-470.76221784,0.0002384,2]
[405327142,1771003625206,503.78304907,0.00013699,2]
[405327143,1771003625480,508.41238657,0.00013273,2]
[405327155,1771003629353,449.76581752,0.00013699,2]
[405327156,1771003633732,500.0,0.00013273,2]
[405327157,1771003633780,500.0,0.00013821,2]
[405327158,1771003634670,500.0,0.00013699,2]
[405327159,1771003636012,501.90557446,0.00013699,2]
[405327160,1771003636681,506.49453126,0.00013699,2]
[405327161,1771003638962,500.0,0.00013273,2]
[405327162,1771003639097,500.0,0.00013273,2]
[405327190,1771003683739,395.29060499,0.00013273,2]
[405327191,1771003687507,500.0,0.00013699,2]
[405327195,1771003754013,506.14109532,0.00013699,2]
[405327196,1771003755325,500.0,0.00013273,2]
[405327197,1771003756287,500.0,0.00013699,2]
[405327198,1771003758126,388.80744541,0.00013699,2]
[405327199,1771003759360,503.6954193,0.00013699,2]
[405327200,1771003760297,290.627,0.00013273,2]
[405327207,1771003812249,505.01026819,0.00013699,2]
[405327208,1771003814081,500.0,0.00013699,2]
[405327209,1771003814144,544.4466554,0.00013699,2]
[405327234,1771003832432,-170.2208122,0.000238,2]
[405327235,1771003832441,-500.7191878,0.000238,2]
[405327236,1771003832453,-293.2808122,0.000238,2]
[405327237,1771003832463,-218.58340905,0.0002382,2]
[405327238,1771003832473,-20.11688277,0.0002384,2]
[405327239,1771003832483,-1407.80398716,0.0002399,3]
[405327242,1771003832493,-300.0,0.00023999,2]
[405327245,1771003832502,-300.0,0.00023999,2]
[405327247,1771003832512,-155.0,0.00023999,2]
[405327250,1771003832521,-180.37,0.00024,2]
[405327253,1771003832530,-5938.39643942,0.00024,2]
[405327255,1771003832539,-200.15,0.00024,14]
[405327257,1771003832548,-500.0,0.00024097,2]
[405327259,1771003832557,-155.0,0.00024348,2]
[405327261,1771003832567,-2827.74180435,0.0002437,3]
[405327263,1771003832580,-247.77883929,0.00024435,2]
[405327265,1771003832590,-646.05081699,0.00024435,2]
[405327267,1771003832599,-500.0,0.00024435,2]
[405327269,1771003832607,-500.0,0.00024435,2]
[405327270,1771003832618,-500.0,0.00024435,2]
[405327271,1771003832627,-303.66855311,0.00024435,2]
[405327272,1771003832636,-500.0,0.00024435,2]
[405327273,1771003832646,-500.0,0.00024435,2]
[405327274,1771003832655,-500.0,0.00024435,2]
[405327275,1771003832666,-500.0,0.00024435,2]
[405327276,1771003832675,-500.0,0.00024435,2]
[405327277,1771003832684,-282.502663,0.00024435,2]
[405327278,1771003832693,-500.0,0.00024435,2]
[405327279,1771003832703,-500.0,0.00024435,2]
[405327280,1771003832712,-500.0,0.00024435,2]
[405327281,1771003832722,-500.0,0.00024435,2]
[405327282,1771003832731,-500.0,0.00024435,2]
[405327283,1771003832740,-500.0,0.00024435,2]
[405327284,1771003832749,-500.0,0.00024435,2]
[405327285,1771003832758,-500.0,0.00024435,2]
[405327286,1771003832768,-500.0,0.00024435,2]
[405327287,1771003832778,-500.0,0.00024435,2]
[405327288,1771003832787,-500.0,0.00024435,2]
[405327289,1771003832797,-500.0,0.00024435,2]
[405327290,1771003832806,-500.0,0.00024435,2]
[405327291,1771003832816,-500.0,0.00024435,2]
[405327292,1771003832826,-500.0,0.00024435,2]
[405327293,1771003832836,-500.0,0.00024435,2]
[405327294,1771003832846,-500.0,0.00024435,2]
[405327295,1771003832854,-500.0,0.00024435,2]
[405327296,1771003832864,-500.0,0.00024435,2]
[405327297,1771003832873,-500.0,0.00024435,2]
[405327298,1771003832882,-500.0,0.00024435,2]
[405327299,1771003832891,-500.0,0.00024435,2]
[405327300,1771003832901,-500.0,0.00024435,2]
[405327301,1771003832914,-500.0,0.00024435,2]
[405327302,1771003832923,-500.0,0.00024435,2]
[405327303,1771003832932,-500.0,0.00024435,2]
[405327304,1771003832943,-500.0,0.00024435,2]
[405327305,1771003832952,-500.0,0.00024435,2]
[405327306,1771003832962,-500.0,0.00024435,2]
[405327307,1771003832971,-500.0,0.00024435,2]
[405327308,1771003832981,-500.0,0.00024435,2]
[405327309,1771003832990,-500.0,0.00024435,2]
[405327310,1771003833000,-500.0,0.00024435,2]
[405327311,1771003833011,-500.0,0.00024435,2]
[405327312,1771003833020,-500.0,0.00024435,2]
[405327313,1771003833030,-500.0,0.00024435,2]
[405327314,1771003833039,-500.0,0.00024435,2]
[405327315,1771003833049,-500.0,0.00024435,2]
[405327316,1771003833058,-500.0,0.00024435,2]
[405327317,1771003833068,-500.0,0.00024435,2]
[405327318,1771003833078,-500.0,0.00024435,2]
[405327319,1771003833087,-500.0,0.00024435,2]
[405327320,1771003833097,-500.0,0.00024435,2]
[405327321,1771003833106,-500.0,0.00024435,2]
[405327322,1771003833116,-500.0,0.00024435,2]
[405327323,1771003833126,-500.0,0.00024435,2]
[405327324,1771003833136,-500.0,0.00024435,2]
[405327325,1771003833145,-620.5355498,0.00024435,2]
[405327326,1771003833155,-500.0,0.00024435,2]
[405327327,1771003833166,-500.0,0.00024435,2]
[405327328,1771003833176,-500.0,0.00024435,2]
[405327329,1771003833186,-500.0,0.00024435,2]
[405327330,1771003833195,-500.0,0.00024435,2]
[405327331,1771003833205,-500.0,0.00024435,2]
[405327332,1771003833215,-500.0,0.00024435,2]
[405327333,1771003833223,-500.0,0.00024435,2]
[405327334,1771003833232,-500.0,0.00024435,2]
[405327335,1771003833242,-443.65785435,0.00024435,2]
[405327336,1771003833256,-56.34214565,0.00024435,2]
[405327337,1771003833266,-486.65785435,0.00024435,2]
[405327362,1771003838548,-13.34214565,0.00024435,2]
[405327364,1771003838558,-500.0,0.00024435,2]
[405327366,1771003838569,-500.0,0.00024435,2]
[405327368,1771003838582,-500.0,0.00024435,2]
[405327369,1771003838592,-500.0,0.00024435,2]
[405327371,1771003838602,-500.0,0.00024435,2]
[405327373,1771003838612,-500.0,0.00024435,2]
[405327375,1771003838624,-500.0,0.00024435,2]
[405327377,1771003838634,-500.0,0.00024435,2]
[405327378,1771003838643,-500.0,0.00024435,2]
[405327380,1771003838656,-500.0,0.00024435,2]
[405327382,1771003838667,-500.0,0.00024435,2]
[405327384,1771003838677,-500.0,0.00024435,2]
[405327385,1771003838687,-500.0,0.00024435,2]
[405327387,1771003838696,-500.0,0.00024435,2]
[405327389,1771003838706,-500.0,0.00024435,2]
[405327390,1771003838716,-500.0,0.00024435,2]
[405327392,1771003838726,-500.0,0.00024435,2]
[405327394,1771003838737,-500.0,0.00024435,2]
[405327396,1771003838747,-500.0,0.00024435,2]
[405327398,1771003838758,-500.0,0.00024435,2]
[405327399,1771003838768,-500.0,0.00024435,2]
[405327401,1771003838778,-500.0,0.00024435,2]
[405327403,1771003838788,-224.86545373,0.00024435,2]
[405327405,1771003838798,-500.0,0.00024435,2]
[405327407,1771003838808,-500.0,0.00024435,2]
[405327408,1771003838819,-500.0,0.00024435,2]
[405327410,1771003838829,-500.0,0.00024435,2]
[405327412,1771003838842,-500.0,0.00024435,2]
[405327414,1771003838852,-500.0,0.00024435,2]
[405327416,1771003838862,-500.0,0.00024435,2]
[405327417,1771003838871,-500.0,0.00024435,2]
[405327419,1771003838881,-300.0,0.00024435,2]
[405327421,1771003838891,-500.0,0.00024435,2]
[405327422,1771003838900,-500.0,0.00024435,2]
[405327424,1771003838909,-500.0,0.00024435,2]
[405327426,1771003838921,-500.0,0.00024435,2]
[405327428,1771003838930,-500.0,0.00024435,2]
[405327430,1771003838940,-500.0,0.00024435,2]
[405327431,1771003838949,-500.0,0.00024435,2]
[405327433,1771003838959,-500.0,0.00024435,2]
[405327435,1771003838968,-500.0,0.00024435,2]
[405327437,1771003838978,-500.0,0.00024435,2]
[405327438,1771003838987,-400.0,0.00024435,2]
[405327440,1771003838997,-500.0,0.00024435,2]
[405327442,1771003839006,-500.0,0.00024435,2]
[405327444,1771003839015,-500.0,0.00024435,2]
[405327446,1771003839025,-500.0,0.00024435,2]
[405327447,1771003839035,-500.0,0.00024435,2]
[405327449,1771003839045,-500.0,0.00024435,2]
[405327451,1771003839055,-500.0,0.00024435,2]
[405327453,1771003839065,-500.0,0.00024435,2]
[405327454,1771003839074,-500.0,0.00024435,2]
[405327456,1771003839083,-500.0,0.00024435,2]
[405327458,1771003839092,-246.24327857,0.00024435,2]
[405327675,1771003846502,-253.75672143,0.00024435,2]
[405327677,1771003846511,-92.81851157,0.00024435,2]
[405327679,1771003846523,-407.18148843,0.00024435,2]
[405327681,1771003846533,-92.33091157,0.00024435,2]
[405327688,1771003846597,-407.66908843,0.00024435,2]
[405327690,1771003846608,-500.0,0.00024435,2]
[405327692,1771003846620,-500.0,0.00024435,2]
[405327694,1771003846630,-500.0,0.00024435,2]
[405327696,1771003846640,-500.0,0.00024435,2]
[405327698,1771003846651,-500.0,0.00024435,2]
[405327700,1771003846661,-300.0,0.00024486,10]
[405327711,1771003846834,-300.0,0.00024486,10]
[405327712,1771003846844,-300.0,0.00024486,10]
[405327713,1771003846853,-300.0,0.00024486,10]
[405327714,1771003846862,-300.0,0.00024486,10]
[405327715,1771003846871,-300.0,0.00024486,10]
[405327716,1771003846881,-300.0,0.00024486,10]
[405327717,1771003846890,-300.0,0.00024486,10]
[405327718,1771003846900,-300.0,0.00024486,10]
[405327719,1771003846909,-300.0,0.00024486,10]
[405327720,1771003846920,-300.0,0.00024486,10]
[405327722,1771003846930,-300.0,0.00024486,10]
[405327724,1771003846940,-300.0,0.00024486,10]
[405327725,1771003846949,-300.0,0.00024486,10]
[405327726,1771003846959,-300.0,0.00024486,10]
[405327727,1771003846969,-600.0,0.00024486,10]
[405327728,1771003846978,-5041.62237275,0.0002465,2]
[405327729,1771003846988,-1939.54532646,0.00024774,2]
[405327730,1771003846997,-1863.81024832,0.00024926,3]
[405327731,1771003847010,-2383.86937322,0.00024926,3]
[405327732,1771003847019,-1999.66301873,0.00025,15]
[405327733,1771003865122,500.0,0.00013273,2]
[405327734,1771003869309,503.28746652,0.00013699,2]
[405327735,1771003870198,500.0,0.00013273,2]
[405327736,1771003873507,616.31549059,0.00013273,2]
[405327737,1771003874830,500.44142396,0.00013273,2]
[405327738,1771003876213,505.72357078,0.00013273,2]
[405327739,1771003876490,502.64445229,0.00013273,2]
[405327740,1771003877989,488.77387281,0.00013699,2]
[405327741,1771003921981,-1323.19352045,0.00025,15]
[405327742,1771003924697,501.3540148,0.00013273,2]
[405327744,1771003984508,500.0,0.00013273,2]
[405327745,1771003984567,500.0,0.00013821,2]
[405327746,1771003990210,1000.0,0.00013821,2]
[405327747,1771003990255,500.0,0.00013273,2]
[405327748,1771003990305,1000.0,0.00014368,2]
[405327749,1771003991160,500.0,0.00013273,2]
[405327750,1771003991317,500.0,0.00013273,2]
[405327751,1771003991542,500.0,0.00013273,2]
[405327752,1771003991887,500.0,0.00013273,2]
[405327753,1771003991954,500.0,0.00013821,2]
[405327754,1771004045971,500.0,0.00013699,2]
[405327755,1771004047065,383.11278081,0.00013273,2]
[405327778,1771004107166,500.0,0.00013699,2]
[405327779,1771004107228,506.36644889,0.00014247,2]
[405327780,1771004107255,504.40348587,0.00013699,2]
[405327781,1771004108683,403.9600389,0.00013273,2]
[405327782,1771004110598,473.73970571,0.00013699,2]
[405327783,1771004111449,186.34771927,0.00013273,2]
[405327784,1771004113351,500.0,0.00013699,2]
[405327785,1771004113404,1000.0,0.00014247,2]
[405327786,1771004114592,303.10001603,0.000189,2]
[405327787,1771004114624,152.06974462,0.00019089,2]
[405327788,1771004116938,500.0,0.00013273,2]
[405327789,1771004116987,503.64222576,0.00013821,2]
[405327790,1771004117813,500.0,0.00013699,2]
[405327791,1771004118001,1000.0,0.00014247,2]
[405327792,1771004119452,501.67254774,0.00013273,2]
[405327793,1771004119903,500.0,0.00013273,2]
[405327794,1771004119956,505.714318,0.00013821,2]
[405327800,1771004171149,500.0,0.00013699,2]
[405327801,1771004187366,500.0,0.00013699,2]
[405327802,1771004222956,500.0,0.00013273,2]
[405327803,1771004223102,500.0,0.00013273,2]
[405327804,1771004223140,1000.0,0.00013821,2]
[405327805,1771004223193,500.0,0.00014368,2]
[405327806,1771004226284,545.14043835,0.00013699,2]
[405327807,1771004230637,211.66657795,0.00013273,2]
[405327808,1771004230792,500.0,0.00013273,2]
[405327809,1771004231123,164.39700143,0.00013973,2]
[405327810,1771004231151,501.86881313,0.00013821,2]
[405327811,1771004231184,500.0,0.00013273,2]
[405327812,1771004233667,500.0,0.00013699,2]
[405327813,1771004234513,500.0,0.00014247,2]
[405327814,1771004234936,500.0,0.00013699,2]
[405327815,1771004241148,500.0,0.00013699,2]
[405327816,1771004241238,506.85848622,0.00014247,2]
[405327818,1771004244248,500.0,0.00013273,2]
[405327819,1771004244366,491.1711372,0.00013273,2]
[405327824,1771004343225,501.34318596,0.00013273,2]
[405327825,1771004343530,560.9187124,0.00013699,2]
[405327826,1771004346796,500.0,0.00013699,2]
[405327827,1771004352316,500.0,0.00013699,2]
[405327828,1771004352369,500.0,0.00014247,2]
[405327829,1771004356417,500.0,0.00013699,2]
[405327830,1771004363951,158.98926016,0.00013699,2]
[405327833,1771004409615,500.0,0.00013699,2]
[405327834,1771004409833,501.50826125,0.00013699,2]
[405327835,1771004409878,361.13333414,0.00013273,2]
[405327836,1771004410956,501.45181418,0.00013699,2]
[405327837,1771004413458,500.0,0.00013699,2]
[405327838,1771004413490,160.10365424,0.00014247,2]
[405327839,1771004413518,500.0,0.00013273,2]
[405327840,1771004413560,1000.0,0.00013821,2]
[405327841,1771004413589,353.6239305,0.00014368,2]
[405327842,1771004414655,301.08055174,0.00014247,2]
[405327843,1771004414779,500.0,0.00013699,2]
[405327844,1771004415690,500.0,0.00013273,2]
[405327845,1771004466092,503.03326846,0.00013699,2]
[405327846,1771004466178,541.70062063,0.00013699,2]
[405327848,1771004467126,500.0,0.00013273,2]
[405327849,1771004467182,1000.0,0.00013821,2]
[405327850,1771004467237,500.0,0.00014368,2]
[405327851,1771004471630,500.0,0.00013699,2]
[405327852,1771004471807,300.0,0.00013673,2]
[405327853,1771004473571,500.0,0.00013273,2]
[405327854,1771004473605,664.79232933,0.00013821,2]
[405327857,1771004509390,234.05265514,0.00023007,2]
[405327860,1771004531674,964.6589018,0.00013821,2]
[405327861,1771004531729,500.0,0.00013273,2]
[405327868,1771004583789,500.0,0.00013699,2]
[405327869,1771004588176,300.0,0.00013673,2]
[405327870,1771004643677,500.71191812,0.00013273,2]
[405327871,1771004643768,500.0,0.00013273,2]
[405327872,1771004707269,500.0,0.00013699,2]
[405327873,1771004707300,501.56442921,0.00013699,2]
[405327874,1771004707331,619.07421439,0.00013699,2]
[405327875,1771004707362,659.1472787,0.00014247,2]
[405327876,1771004707404,504.56122746,0.00013699,2]
[405327877,1771004710727,500.0,0.00013273,2]
[405327878,1771004710777,1000.0,0.00013821,2]
[405327879,1771004711164,505.82038437,0.00014247,2]
[405327880,1771004711219,500.0,0.00013699,2]
[405327881,1771004714027,500.0,0.00013273,2]
[405327882,1771004714080,1000.0,0.00013821,2]
[405327883,1771004714139,1000.0,0.00014368,2]
[405327884,1771004720300,500.0,0.00013699,2]
[405327885,1771004720356,504.78667089,0.00014247,2]
[405327886,1771004721320,499.99,0.00013699,2]
[405327887,1771004723541,500.0,0.00013699,2]
[405327888,1771004729186,500.0,0.00013699,2]
[405327889,1771004766942,500.0,0.00013699,2]
[405327890,1771004770806,350.0,0.00018356,2]
[405327891,1771004770858,150.0,0.00017808,2]
[405327892,1771004771671,214.21174087,0.00018717,2]
[405327893,1771004772142,252.76985422,0.00020717,2]
[405327894,1771004772522,291.32796758,0.00022717,2]
[405327895,1771004779678,500.0,0.00013273,2]
[405327896,1771004779714,526.91838931,0.00014368,2]
[405327897,1771004779780,1000.0,0.00013821,2]
[405327898,1771004788126,500.0,0.00013273,2]
[405327899,1771004788156,1000.0,0.00013821,2]
[405327900,1771004824914,501.92888856,0.00013699,2]
[405327901,1771004876766,3512.67939805,0.000235,2]
[405327902,1771004883905,503.43455699,0.00013273,2]
[405327903,1771004884123,500.0,0.00013699,2]
[405327904,1771004884160,332.93679327,0.00014247,2]
[405327906,1771004943525,500.0,0.00013699,2]
[405327907,1771004945866,500.91206284,0.00013699,2]
[405327908,1771005005074,401.04187043,0.00013273,2]
[405327909,1771005006337,503.49981196,0.00013273,2]
[405327910,1771005006875,151.91940907,0.00013673,2]
[405327911,1771005009924,300.0,0.00013673,2]
[405327917,1771005031558,-5000.0,0.00023976,2]
[405327918,1771005031569,-1380.24711303,0.00024168,3]
[405327919,1771005031580,-300.0,0.00024307,2]
[405327920,1771005031591,-746.0,0.00024307,2]
[405327921,1771005031601,-500.0,0.00024308,2]
[405327922,1771005031612,-500.0,0.00024308,2]
[405327923,1771005031624,-500.0,0.00024308,2]
[405327924,1771005031634,-362.92731647,0.00024308,2]
[405327925,1771005031644,-500.0,0.00024308,2]
[405327926,1771005031656,-500.0,0.00024308,2]
[405327927,1771005031667,-173.11968936,0.00024308,2]
[405327928,1771005031677,-500.0,0.00024308,2]
[405327929,1771005031687,-352.05355498,0.00024308,2]
[405327930,1771005031698,-500.0,0.00024308,2]
[405327931,1771005031709,-500.0,0.00024308,2]
[405327932,1771005031719,-500.0,0.00024308,2]
[405327933,1771005031729,-500.0,0.00024308,2]
[405327934,1771005031738,-252.48654537,0.00024308,2]
[405327935,1771005031910,-500.0,0.00024308,2]
[405327936,1771005031928,-500.0,0.00024308,2]
[405327937,1771005031942,-500.0,0.00024308,2]
[405327938,1771005031951,-500.0,0.00024308,2]
[405327939,1771005031961,-303.16338553,0.00024434,2]
[405327940,1771005031973,-226.41391193,0.00024434,2]
[405327941,1771005031983,-2769.07591156,0.00024531,3]
[405327942,1771005031992,-4578.6547489,0.00024621,2]
[405327943,1771005032003,-329.88608094,0.00024717,2]
[405327944,1771005032013,-173.44518751,0.00024999,2]
[405327945,1771005032023,-25132.76493841,0.00025,15]
[405327946,1771005032032,-13625.09623211,0.00025,30]
[405327947,1771005032042,-4157.90471009,0.00025076,3]